bitfinex-derivatives/quotes_SOLF0:USTF0_20250409
["timestamp","ask_amount","ask_price","bid_price","bid_amount"]
[1744196428054,4.6477,106.79,106.69,61.77092195]
[1744196428358,61.70106898,106.84,106.71,61.70106898]
[1744196428555,61.70106898,106.81,106.61,4.6113]
[1744196428749,61.70106898,106.75,106.61,4.6113]
[1744196428942,61.70106898,106.8,106.61,4.6113]
[1744196428943,9.3792,106.67,106.62,9.3832]
[1744196429148,61.70106898,106.66,106.53,2.269]
[1744196429344,0.07066021,106.69,106.51,2.2839]
[1744196429549,2.4039,106.69,106.58,0.06824587]
[1744196429753,64.10496898,106.69,106.58,0.06824587]
[1744196430060,0.06348959,106.61,106.56,206.0657061]
[1744196430350,61.70106898,106.63,106.56,144.36463712]
[1744196430552,9.3874,106.58,106.56,144.36463712]
[1744196430752,0.07101034,106.6,106.56,144.36463712]
[1744196430951,61.77207932,106.6,106.56,144.36463712]
[1744196431154,9.388,106.57,106.56,144.36463712]
[1744196431360,61.70106898,106.57,106.53,456.50327298]
[1744196431653,9.3947,106.5,106.43,162.82583097]
[1744196431851,18.7663,106.63,106.44,61.70106898]
[1744196432051,0.06175829,106.56,106.43,153.42633097]
[1744196432255,2.307,106.59,106.46,61.70106898]
[1744196432559,0.06690785,106.51,106.48,61.70106898]
[1744196432755,2.1759,106.65,106.51,0.06672528]
[1744196432952,2.307,106.69,106.51,0.06672528]
[1744196433145,61.70106898,106.64,106.53,61.70106898]
[1744196433348,2.307,106.69,106.54,61.70106898]
[1744196433657,61.70106898,106.65,106.54,61.70106898]
[1744196433855,61.70106898,106.61,106.53,2.1809]
[1744196434159,0.06420937,106.63,106.43,153.42633097]
[1744196434358,2.3918,106.6,106.41,4.435]
[1744196434558,2.307,106.59,106.41,4.435]
[1744196434951,38.18385919,106.63,106.41,4.435]
[1744196435159,2.2499,106.59,106.42,61.70106898]
[1744196435360,61.70106898,106.54,106.42,61.70106898]
[1744196435555,0.06930224,106.53,106.51,0.06567766]
[1744196435759,61.70106898,106.54,106.41,4.435]
[1744196435957,61.70106898,106.52,106.51,4.516e-05]
[1744196436255,2.2499,106.59,106.4,61.70106898]
[1744196436461,61.70106898,106.56,106.41,62.0]
[1744196436658,61.70106898,106.56,106.42,1.87934598]
[1744196437163,2.3652,106.58,106.46,61.70106898]
[1744196437359,61.70106898,106.57,106.48,0.05983468]
[1744196437566,38.18385919,106.61,106.48,61.70106898]
[1744196437765,38.18385919,106.61,106.52,61.70106898]
[1744196437966,99.88492817,106.61,106.5,61.70106898]
[1744196438159,61.70106898,106.59,106.46,2.3957]
[1744196438464,61.70106898,106.5,106.3,495.64]
[1744196438666,0.06088265,106.54,106.4,61.70106898]
[1744196438965,2.1845,106.53,106.31,6.6316]
[1744196439167,61.70106898,106.47,106.32,1.88111361]
[1744196439352,61.70106898,106.5,106.36,61.70106898]
[1744196439552,2.1845,106.53,106.35,61.70106898]
[1744196439768,61.70106898,106.5,106.38,61.70106898]
[1744196439956,0.06622479,106.45,106.43,0.06743008]
[1744196440457,61.70106898,106.46,106.33,2.2784]
[1744196440659,0.06267257,106.45,106.43,0.0660588]
[1744196440859,61.70106898,106.47,106.36,61.70106898]
[1744196441068,9.4005,106.43,106.37,9.4056]
[1744196441267,0.06429039,106.45,106.35,61.70106898]
[1744196441465,9.3968,106.48,106.41,9.4014]
[1744196441763,2.1845,106.53,106.35,61.70106898]
[1744196441964,61.70106898,106.49,106.33,2.2784]
[1744196442268,61.70106898,106.5,106.35,61.70106898]
[1744196442764,40.36835919,106.53,106.37,61.70106898]
[1744196442968,61.70106898,106.5,106.31,2.1703]
[1744196443156,0.05948989,106.44,106.41,0.06025786]
[1744196443358,61.70106898,106.42,106.41,5.786e-05]
[1744196443557,61.70106898,106.42,106.3,61.70106898]
[1744196444374,61.70106898,106.4,106.28,63.91206898]
[1744196444568,61.70106898,106.33,106.26,0.35698073]
[1744196445163,496.04,106.38,106.28,0.06487701]
[1744196445372,0.06961847,106.31,106.28,0.06487701]
[1744196445572,0.06961847,106.31,106.26,0.35698073]
[1744196445763,1.88022938,106.37,106.29,61.70106898]
[1744196445962,2.3726,106.43,106.31,61.70106898]
[1744196446377,2.3726,106.43,106.33,61.70106898]
[1744196446568,2.3726,106.43,106.3,125.94336898]
[1744196446770,2.3726,106.43,106.36,0.06126965]
[1744196446980,9.4006,106.43,106.37,9.4055]
[1744196447271,61.70106898,106.43,106.3,125.94336898]
[1744196447474,2.2094,106.44,106.3,64.2423]
[1744196447777,0.06066825,106.38,106.35,0.07180755]
[1744196448182,2.2094,106.44,106.36,61.70106898]
[1744196448370,38.18385919,106.5,106.42,9.401]
[1744196448566,38.18385919,106.5,106.42,61.70106898]
[1744196448772,0.06801107,106.47,106.44,61.70106898]
[1744196449076,0.06801107,106.47,106.45,0.06082401]
[1744196449273,0.06801107,106.47,106.35,61.70106898]
[1744196449274,61.76908005,106.47,106.33,2.3132]
[1744196449472,38.18385919,106.5,106.35,61.70106898]
[1744196449779,38.18385919,106.5,106.46,61.70106898]
[1744196449970,38.18385919,106.5,106.49,9.395]
[1744196450165,101.82362453,106.52,106.48,61.70106898]
[1744196450367,51.70022453,106.52,106.5,61.70106898]
[1744196450566,35.57182453,106.52,106.51,9.3932]
[1744196450781,35.63562766,106.52,106.51,9.3932]
[1744196451074,0.06380313,106.52,106.49,0.06287375]
[1744196451279,61.70106898,106.6,106.49,62.06287375]
[1744196451483,61.70106898,106.56,106.49,0.06287375]
[1744196451682,61.70106898,106.58,106.46,2.2091]
[1744196451979,61.70106898,106.56,106.46,2.2091]
[1744196452170,61.70106898,106.54,106.46,2.2091]
[1744196452374,61.70106898,106.56,106.46,2.2091]
[1744196452674,0.06604203,106.51,106.49,0.07085366]
[1744196453177,61.70106898,106.54,106.44,9.3994]
[1744196453381,0.06591892,106.51,106.49,0.06115177]
[1744196453581,61.70106898,106.54,106.4,61.70106898]
[1744196453876,61.70106898,106.5,106.41,2.2379]
[1744196454072,61.70106898,106.58,106.44,61.70106898]
[1744196454279,2.3884,106.58,106.44,61.70106898]
[1744196454488,61.70106898,106.56,106.45,62.0]
[1744196454869,61.70106898,106.53,106.41,2.2379]
[1744196455074,0.06192929,106.52,106.41,2.2379]
[1744196455270,61.70106898,106.51,106.39,61.70106898]
[1744196455470,61.70106898,106.49,106.37,61.70106898]
[1744196455680,2.2388,106.48,106.37,61.70106898]
[1744196456174,2.2388,106.48,106.39,61.70106898]
[1744196456382,0.06025414,106.44,106.41,0.06470429]
[1744196456881,0.06025414,106.44,106.4,61.70106898]
[1744196457082,0.06025414,106.44,106.41,0.06876251]
[1744196457378,2.2388,106.48,106.41,0.06876251]
[1744196457583,0.06556088,106.44,106.41,61.76983149]
[1744196457781,0.06556088,106.44,106.32,4.5169]
[1744196458081,2.2388,106.48,106.41,1.559e-05]
[1744196458381,9.4055,106.38,106.33,9.4086]
[1744196458575,61.70106898,106.4,106.28,61.70106898]
[1744196458779,61.70106898,106.38,106.27,2.3348]
[1744196458984,61.70106898,106.36,106.26,2.23915652]
[1744196459280,61.70106898,106.34,106.26,2.23915652]
[1744196459485,61.70106898,106.38,106.26,63.9402255]
[1744196459680,4.4471,106.39,106.3,61.7661755]
[1744196459882,9.407,106.36,106.31,9.4108]
[1744196460280,4.4471,106.39,106.26,2.23915652]
[1744196460479,2.2334,106.39,106.33,61.70106898]
[1744196460682,4.6919,106.46,106.35,61.70106898]
[1744196460874,4.6919,106.46,106.41,9.4012]
[1744196461997,61.70106898,106.48,106.41,0.06677829]
[1744196462182,2.3969,106.49,106.39,62.0]
[1744196462482,61.70106898,106.48,106.39,62.0]
[1744196462684,61.70106898,106.48,106.36,2.3735]
[1744196462685,61.70106898,106.44,106.36,2.3735]
[1744196462889,0.06948627,106.45,106.36,2.3735]
[1744196463090,61.70106898,106.41,106.36,2.3735]
[1744196463291,2.1941,106.43,106.32,61.70106898]
[1744196463587,9.4023,106.41,106.33,61.70106898]
[1744196463786,2.1941,106.43,106.33,61.70106898]
[1744196463979,2.1941,106.43,106.35,61.70106898]
[1744196464178,0.06857112,106.38,106.36,0.06473175]
[1744196464585,0.06857112,106.38,106.27,549.2738]
[1744196464586,61.70106898,106.4,106.27,2.2738]
[1744196464788,2.3372,106.42,106.26,2.23915652]
[1744196464789,496.26,106.39,106.26,2.23915652]
[1744196464974,61.70106898,106.37,106.36,9.229e-05]
[1744196465283,61.70106898,106.37,106.26,2.23915652]
[1744196465583,61.70106898,106.37,106.29,61.70106898]
[1744196465584,2.3758,106.37,106.29,61.70106898]
[1744196465887,2.3758,106.37,106.26,2.23915652]
[1744196465888,4.713,106.42,106.33,61.70106898]
[1744196466072,61.70106898,106.34,106.26,2.23915652]
[1744196466272,496.32,106.37,106.26,2.23915652]
[1744196466489,61.70106898,106.32,106.26,2.23915652]
[1744196466696,61.70106898,106.3,106.23,0.3239735]
[1744196466882,61.70106898,106.28,106.23,0.3239735]
[1744196467085,61.70106898,106.24,106.16,0.38774541]
[1744196467287,9.4207,106.2,106.16,0.38774541]
[1744196467590,0.06762653,106.21,106.18,0.06284821]
[1744196467785,359.0,106.34,106.2,61.70106898]
[1744196467989,61.70106898,106.35,106.21,61.70106898]
[1744196468179,63.87946898,106.32,106.21,61.70106898]
[1744196468383,2.1784,106.32,106.23,61.70106898]
[1744196468578,855.66,106.44,106.27,61.70106898]
[1744196468783,855.66,106.44,106.33,61.70106898]
[1744196468988,61.70106898,106.42,106.28,2.3337]
[1744196469182,0.07137469,106.37,106.34,0.06865762]
[1744196469588,61.70106898,106.42,106.29,61.70106898]
[1744196469884,0.06303573,106.37,106.34,61.76893642]
[1744196470184,2.2334,106.44,106.34,61.76893642]
[1744196470381,361.2334,106.44,106.28,64.03476898]
[1744196470582,61.70106898,106.4,106.28,61.70106898]
[1744196470781,61.70106898,106.4,106.23,64.10396898]
[1744196470782,9.4118,106.3,106.23,64.10396898]
[1744196470986,61.70106898,106.34,106.23,2.4029]
[1744196471294,61.70106898,106.38,106.27,61.70106898]
[1744196471488,61.70106898,106.38,106.25,61.77067989]
[1744196471688,61.70106898,106.35,106.23,2.4029]
[1744196471993,61.70106898,106.35,106.19,0.35899349]
[1744196471994,123.40213796,106.25,106.19,0.35899349]
[1744196472293,61.70106898,106.22,106.15,0.34639802]
[1744196472486,6.8166,106.24,106.15,0.34639802]
[1744196472683,61.70106898,106.2,106.15,0.34639802]
[1744196472989,6.8166,106.24,106.15,0.34639802]
[1744196472990,9.4242,106.16,106.15,0.34639802]
[1744196473386,6.8166,106.24,106.15,0.34639802]
[1744196473591,61.70106898,106.22,106.15,0.34639802]
[1744196473986,6.8166,106.24,106.15,0.34639802]
[1744196473987,9.4242,106.16,106.15,0.34639802]
[1744196474189,0.07179481,106.21,106.12,0.38373061]
[1744196474190,61.70106898,106.2,106.12,0.38373061]
[1744196474389,61.70106898,106.17,106.12,0.38373061]
[1744196474581,359.0,106.23,106.1,9.257e-05]
[1744196474582,496.94,106.22,106.1,9.257e-05]
[1744196474784,61.70106898,106.11,106.0,0.35971616]
[1744196474979,0.0680679,106.09,106.06,0.06621178]
[1744196475380,496.94,106.14,106.01,61.70106898]
[1744196475588,496.94,106.14,106.0,0.35971616]
[1744196475791,0.06657759,106.09,106.06,0.06781165]
[1744196476181,0.06657759,106.09,106.05,61.70106898]
[1744196476581,0.06657759,106.09,106.06,0.0671369]
[1744196478095,0.06657759,106.09,106.04,8.419e-05]
[1744196478288,71.13506898,106.05,106.04,8.419e-05]
[1744196478489,9.434,106.05,106.04,8.419e-05]
[1744196478684,71.13506898,106.05,106.04,8.419e-05]
[1744196479193,9.434,106.05,106.04,8.419e-05]
[1744196479496,9.434,106.05,105.98,0.35557113]
[1744196479497,123.40213796,106.05,105.98,0.35557113]
[1744196479690,61.70106898,106.05,105.98,0.35557113]
[1744196479894,4.6516,106.08,105.98,0.35557113]
[1744196480099,63.95386898,106.11,105.99,61.70106898]
[1744196480296,61.70106898,106.09,105.98,0.35557113]
[1744196480499,61.70106898,106.03,105.98,0.35557113]
[1744196480997,61.70106898,105.99,105.92,0.39273431]
[1744196481197,61.70106898,105.97,105.94,6.105e-05]
[1744196481499,497.56,105.97,105.92,9.207e-05]
[1744196481802,61.70106898,105.93,105.89,3.228e-05]
[1744196481999,123.40213796,105.9,105.79,3.33134492]
[1744196482197,61.70106898,105.86,105.79,3.33134492]
[1744196482390,497.56,105.9,105.79,3.33134492]
[1744196482596,559.26106898,105.9,105.85,8.472e-05]
[1744196482898,0.07040689,105.86,105.85,8.472e-05]
[1744196483097,61.70106898,105.91,105.85,8.472e-05]
[1744196483304,359.0,105.99,105.85,8.472e-05]
[1744196483604,359.0,105.99,105.79,3.33134492]
[1744196483605,61.70106898,105.95,105.79,3.33134492]
[1744196483798,61.70106898,105.9,105.79,3.33134492]
[1744196483998,61.70106898,105.81,105.79,3.33134492]
[1744196484202,498.02,105.85,105.83,0.06488304]
[1744196484405,498.02,105.85,105.83,8.304e-05]
[1744196484594,9.4521,105.85,105.79,3.33134492]
[1744196484801,0.06609057,105.86,105.79,3.33134492]
[1744196484995,361.3385,105.94,105.79,3.33134492]
[1744196485195,2.2491,105.93,105.79,3.33134492]
[1744196485397,0.07168059,105.88,105.79,3.33134492]
[1744196485606,9.4517,105.86,105.79,12.78824492]
[1744196485805,61.70106898,105.83,105.79,3.33134492]
[1744196486005,61.70106898,105.81,105.79,3.33134492]
[1744196486310,498.36,105.82,105.75,0.4341566]
[1744196486503,61.70106898,105.81,105.75,0.4341566]
[1744196486706,0.06552997,105.8,105.75,0.4341566]
[1744196487197,62.81104297,105.78,105.75,0.4341566]
[1744196487400,62.81104297,105.78,105.73,6.065e-05]
[1744196487401,62.81104297,105.76,105.73,6.065e-05]
[1744196487594,62.81104297,105.75,105.71,5.058e-05]
[1744196487800,72.27444297,105.72,105.71,5.058e-05]
[1744196488113,62.81104297,105.72,105.67,0.86061041]
[1744196488312,62.81104297,105.69,105.67,0.86061041]
[1744196488514,62.81104297,105.69,105.67,1.041e-05]
[1744196488812,62.81104297,105.73,105.67,1.041e-05]
[1744196489011,498.36,105.81,105.67,1.041e-05]
[1744196489200,498.88,105.86,105.67,62.81105338]
[1744196489405,363.5519,105.89,105.73,62.81104297]
[1744196489601,4.5519,105.89,105.74,498.88]
[1744196489802,62.81104297,105.94,105.78,62.81104297]
[1744196490002,62.81104297,105.94,105.75,498.88]
[1744196490003,62.81104297,105.93,105.76,4.6123]
[1744196490218,9.4501,105.87,105.8,9.4561]
[1744196490505,0.06973166,105.87,105.76,4.6123]
[1744196490709,561.69104297,105.9,105.73,547.0]
[1744196490913,4.4257,105.89,105.69,62.0]
[1744196491111,4.4257,105.89,105.72,62.81104297]
[1744196491314,62.81104297,105.94,105.79,62.81104297]
[1744196491614,2.1773,105.95,105.8,2.3685]
[1744196492003,2.2484,105.96,105.84,62.81104297]
[1744196492203,62.81104297,105.94,105.8,2.3685]
[1744196492410,2.2484,105.96,105.8,65.17954297]
[1744196492712,2.2484,105.96,105.81,62.81104297]
[1744196492713,2.3496,105.95,105.81,62.81104297]
[1744196493013,0.07058307,105.89,105.87,0.06400274]
[1744196493201,2.3496,105.95,105.87,62.87504571]
[1744196493406,2.2855,106.0,105.9,62.81104297]
[1744196493606,62.81104297,106.02,105.89,62.81104297]
[1744196493810,2.2855,106.04,105.94,9.4436]
[1744196494016,2.2855,106.04,105.92,62.81104297]
[1744196494199,2.2855,106.04,105.9,62.81104297]
[1744196494397,2.2855,106.04,105.91,62.0]
[1744196494616,2.2029,106.07,105.97,0.06203229]
[1744196495019,2.2029,106.07,105.96,62.81104297]
[1744196495204,2.2029,106.07,105.91,547.0]
[1744196495405,2.2029,106.07,105.96,62.81104297]
[1744196495601,2.2029,106.07,105.94,62.81104297]
[1744196495806,0.0660073,106.03,106.0,8.794e-05]
[1744196496007,62.81104297,106.01,105.88,4.5567]
[1744196496405,9.4419,105.97,105.88,4.5567]
[1744196496605,62.81104297,106.02,105.89,62.81104297]
[1744196496805,62.81104297,105.96,105.83,62.81104297]
[1744196497116,62.81104297,105.89,105.71,547.0]
[1744196497314,0.06472023,105.91,105.88,0.06945345]
[1744196497814,501.1153,106.01,105.88,9.44]
[1744196498011,9.4397,105.99,105.91,62.81104297]
[1744196498316,0.07207785,105.96,105.91,62.81104297]
[1744196498516,0.07207785,105.96,105.88,62.81104297]
[1744196498812,0.07207785,105.96,105.94,0.07227061]
[1744196499010,62.81104297,105.95,105.83,4.5714]
[1744196499211,62.81104297,105.89,105.79,498.82]
[1744196499405,498.82,105.97,105.75,71.64892039]
[1744196499406,71.64892039,105.91,105.75,71.64892039]
[1744196499605,2.2426,105.94,105.82,71.64892039]
[1744196499905,71.64892039,105.92,105.75,547.0]
[1744196500106,71.64892039,105.92,105.74,621.04252039]
[1744196500415,71.64892039,105.85,105.67,547.00001041]
[1744196500614,2.3572,105.84,105.67,71.6489308]
[1744196500805,2.3572,105.84,105.68,2.3936]
[1744196501010,2.3572,105.84,105.71,9.4637]
[1744196501211,71.64892039,105.82,105.68,2.3936]
[1744196501413,4.4882,105.83,105.68,2.3936]
[1744196501618,0.06765325,105.76,105.67,1.041e-05]
[1744196501921,71.64892039,105.75,105.67,1.041e-05]
[1744196502109,9.467,105.68,105.67,1.041e-05]
[1744196502309,0.06571834,105.72,105.67,1.041e-05]
[1744196502520,9.52991834,105.72,105.67,1.041e-05]
[1744196502819,2.2457,105.74,105.67,1.041e-05]
[1744196503022,0.06317441,105.71,105.7,9.4652]
[1744196503211,498.98,105.83,105.67,1.041e-05]
[1744196503414,498.98,105.83,105.69,0.06794263]
[1744196503615,570.62892039,105.83,105.69,0.06794263]
[1744196503916,498.98,105.83,105.67,547.00001041]
[1744196504215,1.68362975,105.82,105.67,1.041e-05]
[1744196504423,0.06458311,105.76,105.74,0.06571024]
[1744196504812,2.2457,105.8,105.68,62.0]
[1744196505114,0.06231913,105.76,105.74,0.05965392]
[1744196505308,9.4608,105.75,105.74,0.05965392]
[1744196505513,0.06231913,105.76,105.74,0.05965392]
[1744196505911,1.913e-05,105.76,105.74,9.51965392]
[1744196506313,2.1921,105.88,105.75,4.4953]
[1744196507031,2.1921,105.88,105.76,499.12]
[1744196507315,2.1921,105.88,105.75,76.14422039]
[1744196507515,71.64892039,105.86,105.75,4.4953]
[1744196507817,0.0714278,105.83,105.67,1.041e-05]
[1744196508020,71.72034819,105.83,105.68,2.3163]
[1744196508323,363.6707,105.87,105.69,62.0]
[1744196508526,71.64892039,105.83,105.69,62.0]
[1744196508723,359.0,105.86,105.68,2.3163]
[1744196508921,0.06180853,105.77,105.68,2.3163]
[1744196509123,0.06180853,105.77,105.67,1.041e-05]
[1744196509319,76.12522039,105.79,105.67,1.041e-05]
[1744196509523,9.4626,105.73,105.68,9.4668]
[1744196509719,76.12522039,105.79,105.67,1.041e-05]
[1744196509921,71.64892039,105.76,105.67,1.041e-05]
[1744196510315,0.06123031,105.74,105.67,1.041e-05]
[1744196510517,9.4641,105.72,105.67,1.041e-05]
[1744196510717,4.4763,105.79,105.67,1.041e-05]
[1744196511020,0.06453457,105.71,105.67,1.041e-05]
[1744196511222,4.4763,105.79,105.67,1.041e-05]
[1744196511727,0.06952218,105.7,105.67,1.041e-05]
[1744196511912,76.12522039,105.79,105.67,1.041e-05]
[1744196512427,73.89042039,105.84,105.67,71.6489308]
[1744196512727,9.4606,105.76,105.67,1.041e-05]
[1744196512923,4.6751,105.83,105.67,71.6489308]
[1744196513227,4.6751,105.83,105.68,499.3]
[1744196513527,2.2963,105.83,105.74,0.06164689]
[1744196513715,575.71782039,105.9,105.79,9.4566]
[1744196513923,2.2963,105.89,105.75,2.1835]
[1744196514234,71.64892039,105.87,105.75,2.1835]
[1744196514534,2.2963,105.89,105.75,2.1835]
[1744196514725,71.64892039,105.87,105.75,2.1835]
[1744196515031,0.06015003,105.82,105.8,1.869e-05]
[1744196515326,9.4554,105.81,105.8,1.869e-05]
[1744196515521,499.38,105.86,105.72,62.0]
[1744196515720,499.38,105.86,105.72,64.3131]
[1744196516119,71.64892039,105.87,105.72,2.3131]
[1744196516325,71.64892039,105.91,105.78,0.06386835]
[1744196516527,76.26612039,105.88,105.78,0.06386835]
[1744196516728,4.6172,105.88,105.73,71.64892039]
[1744196517029,4.6172,105.88,105.73,547.0]
[1744196517223,2.2831,105.88,105.73,618.64892039]
[1744196517421,2.2831,105.88,105.72,73.96202039]
[1744196517622,0.06234253,105.82,105.79,8.524e-05]
[1744196518127,71.64892039,105.81,105.71,2.3333]
[1744196518330,2.3101,105.8,105.66,2.3336]
[1744196518527,2.3101,105.8,105.66,4.5379]
[1744196518833,2.3101,105.8,105.68,499.38]
[1744196519030,0.06814871,105.75,105.74,9.4613]
[1744196519227,2.2248,105.83,105.72,62.05501495]
[1744196519724,2.2248,105.83,105.72,62.0]
[1744196519924,2.2248,105.83,105.73,2.3336]
[1744196520120,4.6776,105.88,105.73,2.3336]
[1744196520319,52.34366384,105.88,105.8,62.76972627]
[1744196520531,50.03356384,105.88,105.8,62.76972627]
[1744196520725,0.060792,105.85,105.74,2.269]
[1744196520934,62.83051827,105.85,105.74,2.269]
[1744196521229,9.4527,105.84,105.83,1.541e-05]
[1744196521419,359.0,105.82,105.67,1.041e-05]
[1744196521727,62.76972627,105.78,105.67,1.041e-05]
[1744196521932,62.76972627,105.73,105.67,1.041e-05]
[1744196522132,62.76972627,105.78,105.67,1.041e-05]
[1744196522331,0.06493234,105.71,105.69,0.06356365]
[1744196522729,9.46,105.71,105.65,10.44191041]
[1744196523032,9.4778,105.56,105.49,1060.79098997]
[1744196523232,9.4778,105.56,105.52,3.7e-05]
[1744196523233,125.53945254,105.56,105.52,3.7e-05]
[1744196523424,62.76972627,105.53,105.48,83.20804121]
[1744196523624,62.76972627,105.49,105.47,223.77886017]
[1744196523828,499.36,105.49,105.47,166.01982382]
[1744196524036,62.76972627,105.48,105.46,301.16105021]
[1744196524331,562.12972627,105.49,105.46,301.16105021]
[1744196524526,9.482,105.52,105.46,301.16105021]
[1744196524735,62.76972627,105.55,105.46,301.16105021]
[1744196524930,62.76972627,105.54,105.46,301.16105021]
[1744196525123,0.06167378,105.52,105.46,301.16105021]
[1744196525828,0.06167378,105.52,105.47,2.4077]
[1744196527634,0.06167378,105.52,105.47,4.5966]
[1744196527933,63.14859998,105.59,105.47,14.0766]
[1744196528133,63.14859998,105.59,105.47,4.5966]
[1744196528339,63.14859998,105.66,105.49,63.14859998]
[1744196528526,63.14859998,105.52,105.49,547.0]
[1744196528725,63.14859998,105.53,105.45,0.58289317]
[1744196528934,46.35684691,105.51,105.45,0.58289317]
[1744196529141,0.07232528,105.5,105.48,0.06167379]
[1744196529535,0.07232528,105.5,105.45,0.58289317]
[1744196529536,1.8959143,105.49,105.45,0.58289317]
[1744196529731,63.14859998,105.47,105.45,0.58289317]
[1744196530338,565.10451428,105.49,105.45,0.58289317]
[1744196530540,9.4852,105.48,105.45,0.58289317]
[1744196530844,0.06634843,105.48,105.45,0.58289317]
[1744196531038,63.14859998,105.46,105.45,9.317e-05]
[1744196531237,63.14859998,105.46,105.41,0.53923059]
[1744196531538,63.14859998,105.46,105.38,0.51053522]
[1744196531539,9.4931,105.39,105.38,0.51053522]
[1744196531736,9.4931,105.39,105.34,0.58002345]
[1744196531737,63.14859998,105.39,105.34,0.58002345]
[1744196532133,63.14859998,105.36,105.34,0.58002345]
[1744196532334,63.14859998,105.36,105.31,0.49759996]
[1744196532535,63.14859998,105.33,105.27,0.47424973]
[1744196532735,63.14859998,105.29,105.27,0.47424973]
[1744196532946,63.14859998,105.36,105.27,0.47424973]
[1744196533135,0.07215057,105.31,105.23,0.5229251]
[1744196533330,563.48859998,105.3,105.16,9.319e-05]
[1744196533533,63.14859998,105.17,104.95,0.50784123]
[1744196533739,63.14859998,105.24,104.99,500.34]
[1744196533740,1.90186382,105.16,104.99,500.34]
[1744196533938,63.14859998,105.14,105.0,63.14859998]
[1744196534250,1.90186382,105.16,105.09,62.0]
[1744196534430,3.47e-05,105.12,105.09,62.0]
[1744196534630,63.14859998,105.24,105.09,71.52]
[1744196534837,63.49930564,105.23,105.11,0.06521183]
[1744196535036,9.5059,105.25,105.2,9.5101]
[1744196535246,72.48387698,105.28,105.08,573.33018996]
[1744196535443,1.8998765,105.27,105.09,1.74684988]
[1744196535637,72.48387698,105.24,105.09,1.74684988]
[1744196535836,72.48387698,105.24,105.08,500.84631298]
[1744196536147,0.06467249,105.19,105.17,0.06979441]
[1744196536649,72.48387698,105.24,105.08,500.84631298]
[1744196536848,0.0647267,105.19,105.17,0.06239187]
[1744196537344,0.0647267,105.19,105.08,500.84631298]
[1744196537345,72.48387698,105.21,105.08,500.84631298]
[1744196537549,72.48387698,105.18,105.08,0.50631298]
[1744196537744,0.06855496,105.19,105.08,0.50631298]
[1744196538049,1.90114068,105.2,105.11,72.48387698]
[1744196538245,9.5048,105.26,105.11,72.48387698]
[1744196538449,501.26,105.36,105.09,563.26]
[1744196538450,1.90023752,105.25,105.09,501.26]
[1744196538846,0.06578802,105.18,105.1,7.2942]
[1744196539144,72.48387698,105.17,105.08,0.50631298]
[1744196539343,1.90186382,105.16,105.08,0.50631298]
[1744196539545,0.07167656,105.15,105.08,0.50631298]
[1744196539850,1.90186382,105.16,105.08,0.50631298]
[1744196540142,1.90186382,105.16,105.09,501.26]
[1744196540143,4.987e-05,105.13,105.09,501.26]
[1744196540343,4.987e-05,105.13,105.1,2.7163]
[1744196540751,4.987e-05,105.13,105.1,12.2363]
[1744196541049,4.987e-05,105.13,105.12,9.5175]
[1744196541238,2.5249,105.29,105.11,4.5779]
[1744196541445,9.5055,105.26,105.2,9.5098]
[1744196541644,72.48387698,105.29,105.16,501.7]
[1744196541844,1.89969604,105.28,105.16,501.7]
[1744196542044,1.89969604,105.28,105.12,62.0]
[1744196542346,72.48387698,105.19,105.12,62.0]
[1744196542555,72.48387698,105.16,105.08,0.50631298]
[1744196542941,9.5137,105.17,105.12,9.5168]
[1744196543137,0.05987052,105.13,105.11,0.07104987]
[1744196543342,72.48387698,105.16,105.08,0.50631298]
[1744196543649,72.55623175,105.13,105.11,7.296e-05]
[1744196543852,0.07235477,105.13,105.08,0.50631298]
[1744196544041,72.48387698,105.15,105.08,0.50631298]
[1744196544245,1.9022256,105.14,105.08,0.50631298]
[1744196544845,72.48387698,105.21,105.08,0.50631298]
[1744196545047,0.07118301,105.12,105.08,0.50631298]
[1744196545246,501.92,105.23,105.08,0.50631298]
[1744196545451,72.48387698,105.18,105.08,0.50631298]
[1744196545646,72.48387698,105.15,105.08,1.298e-05]
[1744196545950,72.48387698,105.09,104.97,0.40865225]
[1744196546140,72.48387698,105.03,104.97,0.40865225]
[1744196546340,502.08,105.05,104.97,0.40865225]
[1744196546551,72.55474374,105.01,104.99,0.06434032]
[1744196547055,0.07086676,105.01,104.99,0.06434032]
[1744196547253,4.801,105.14,104.99,0.06434032]
[1744196547254,72.48387698,105.13,104.99,9.58434032]
[1744196547443,9.5222,105.07,105.0,4.7382]
[1744196547647,72.48387698,105.13,105.0,4.7382]
[1744196547950,9.5239,105.05,105.0,2.2474]
[1744196548147,72.48387698,105.07,104.97,5.225e-05]